Cogmind - Beta 14 @@@ ROGUE MODE // 2024.09.08 @ 17:04:34 Player: jimmyl Result: Destroyed by X-62 Marksman with Gauss Rifle Performance ------------- Evolutions (4) 2000 Regions Visited (6) 1200 Robots Destroyed (44) 220 Value Destroyed (1652) 1652 Prototype IDs (19) 380 Alien Tech Used (0) 0 Bonus (483) 483 TOTAL SCORE: 5935 Bonus ------- Follower Combat Kills 211 Registered with UFD 300 Friendly Fire -28 Cogmind --------- Core Integrity 0/850 Matter 300/300 Energy 87/100 System Corruption 4% Temperature Cool (0) Movement Core (50) Location -6/Factory Parts ------- > --- POWER (2) -------- (None) > --- PROPULSION (4) --- (None) > --- UTILITY (6) ------ (None) > --- WEAPON (3) ------- (None) > --- INVENTORY (5) ---- Experimental Sensor Array Improved Medium Armor Plating DRS Beacon (Ready) Peak State ------------ > --- POWER ------------ Light Deuterium Engine > --- PROPULSION ------- Carbon-fiber Leg Carbon-fiber Leg Compact Wheel > --- UTILITY ---------- Improved Cooling System Large Storage Unit Matter Compressor Matter Compressor Improved Medium Armor Plating > --- WEAPON ----------- Cooled Plasma Cannon Compact Ion Cannon > --- INVENTORY -------- Light Deuterium Engine Light Deuterium Engine Experimental Sensor Array Improved Medium Armor Plating Heavy Flak Cannon Heavy Flak Cannon CPS Tube DRS Beacon [Rating: 44] Favorites ----------- Power Improved Ion Engine Engine Improved Ion Engine Propulsion Light Treads Treads Light Treads Leg Carbon-fiber Leg Wheel Compact Wheel Utility Heat Sink Device Heat Sink Storage Medium Storage Unit Protection Improved Medium Armor Plating Weapon Improved Assault Rifle Energy Gun Small Laser Energy Cannon Advanced Beam Cannon Ballistic Gun Improved Assault Rifle Ballistic Cannon Heavy Flak Cannon Launcher Missile Launcher Special Weapon CPS Tube Build | -11 -10 -9 -9 -9 -9 -6 ------- Run | Yrd Mat Mat Sto Rec Scr Fac Slots Evolved 8 | . . 2 . . . 6 Power 1 | . . . . . . 1 Propulsion 2 | . . 1 . . . 1 Utility 4 | . . 1 . . . 3 Weapon 1 | . . . . . . 1 Parts Attached 67 | . 2 7 19 1 5 33 Power 8 | . . 1 . . 2 5 Engine 8 | . . 1 . . 2 5 Core . | . . . . . . . Reactor . | . . . . . . . Propulsion 13 | . . 2 1 . 1 9 Treads 4 | . . 2 1 . 1 . Leg 6 | . . . . . . 6 Wheel 3 | . . . . . . 3 Hover . | . . . . . . . Flight . | . . . . . . . Utility 12 | . 1 1 4 . 1 5 Device 7 | . 1 . 4 . . 2 Storage 4 | . . 1 . . 1 2 Processor . | . . . . . . . Hackware . | . . . . . . . Protection 1 | . . . . . . 1 Artifact . | . . . . . . . Weapon 34 | . 1 3 14 1 1 14 Energy Gun 5 | . . 1 3 . . 1 Energy Cannon 14 | . 1 . 4 . . 9 Ballistic Gun 11 | . . 2 7 1 1 . Ballistic Cannon 2 | . . . . . . 2 Launcher 1 | . . . . . . 1 Special Weapon 1 | . . . . . . 1 Impact Weapon . | . . . . . . . Slashing Weapon . | . . . . . . . Piercing Weapon . | . . . . . . . Special Melee Weapon . | . . . . . . . Unidentified Prototypes 7 | . . . 4 . 1 2 Parts Lost 25 | . . . . . . 25 Power 6 | . . . . . . 6 Propulsion 9 | . . . . . . 9 Utility 4 | . . . . . . 4 Weapon 6 | . . . . . . 6 Highest Loss Streak 12 | . . . . . . 12 To Critical Strikes . | . . . . . . . Average Slot Usage (%) 87 | . 90 77 94 99 100 54 Engine 9 | . 14 11 11 11 11 5 Treads 22 | . . 2 29 33 33 2 Leg 3 | . 28 19 . . . 7 Device 17 | . 6 11 21 22 22 6 Storage 10 | . 14 11 11 11 11 8 Energy Gun 1 | . 26 10 . . . . Energy Cannon 3 | . . 10 . . . 13 Ballistic Gun 15 | . . 1 20 21 22 1 Peak Build Rating 44 | 6 7 10 19 20 25 44 Average Rating 21 | 6 6 8 16 19 22 27 On Entrance 13 | 6 6 7 10 19 20 25 Naked Turns 28 | . . . . . . 28 Heaviest Build 60 | 13 15 24 31 30 46 60 Greatest Support 72 | 20 20 40 72 60 60 60 Greatest Overweight (x) 13 | . . 1 . . . 13 Average Overweight (x) . | . . . . . . 1 Largest Inventory Capacity 15 | 8 8 10 10 10 15 15 Average Capacity 11 | 8 8 9 10 10 10 14 Most Carried 11 | 6 6 8 10 10 10 11 Average Carried 8 | 6 6 6 6 9 9 6 Final Capacity 15 | 8 8 10 10 10 15 5 Final Carried 10 | 6 6 6 9 10 10 3 Class Distribution -------------------- 65% | Mutant 13% | Scavenger-Mutant 10% | Gunner 7% | Commander-Mutant 3% | Tank Dominant Class ---------------- Mutant | -10/Materials Mutant | -9/Materials Scavenger-Mutant | -9/Storage Mutant | -9/Recycling Mutant | -9/Scraptown Gunner | -6/Factory Resources | -11 -10 -9 -9 -9 -9 -6 ----------- Run | Yrd Mat Mat Sto Rec Scr Fac Matter Collected 1352 | 200 10 40 80 222 113 687 Remotely . | . . . . . . . Salvage Created 2157 | . 169 157 124 89 113 1505 Parts 90 | . 8 7 9 . 6 60 Haulers Intercepted . | . . . . . . . Recyclers Shooed 6 | . . . . . . 6 Parts Field Recycled . | . . . . . . . Retrieved Matter . | . . . . . . . Parts Self-Destructed 6 | . . . . . 6 . Prevented . | . . . . . . . Kills | -11 -10 -9 -9 -9 -9 -6 ------- Run | Yrd Mat Mat Sto Rec Scr Fac Combat Hostiles Destroyed 35 | . 4 3 2 2 . 24 Guns 10 | . 4 . 2 2 . 2 Cannons 20 | . . 3 . . . 17 AOE 4 | . . . . . . 4 Classes Destroyed 10 | . 1 1 1 2 . 5 Worker 2 | . . . . . . 2 Recycler 4 | . . . . . . 4 Watcher 3 | . . . 1 . . 2 Swarmer 8 | . . . . . . 8 Grunt 15 | . 4 . . . . 11 Brawler 2 | . . . . 1 . 1 Duelist 3 | . . . . 1 . 2 Sentry 5 | . . 3 2 . . . Hunter 1 | . . . . . . 1 Programmer 1 | . . . . . . 1 Best Kill Streak 7 | . 4 3 2 1 . 7 Combat Bots Only 5 | . 4 3 2 1 . 5 Max Kills in Single Turn 2 | . 1 1 1 1 . 2 Gunslinging . | . . . . . . . Exploded 2 | . . . . . . 2 Melee . | . . . . . . . Uniques/NPCs Destroyed . | . . . . . . . Combat | -11 -10 -9 -9 -9 -9 -6 -------- Run | Yrd Mat Mat Sto Rec Scr Fac Hostile Shots Fired 375 | . 24 24 14 6 . 307 Missed 106 | . 4 4 3 2 . 93 Damage Taken 4622 | . 213 289 161 79 . 3880 Core 992 | . 53 55 14 16 . 854 Absorbed by Shields . | . . . . . . . Core Remaining (%) 85 | 100 78 . . . 78 . Volleys Fired 144 | . 14 8 22 7 7 86 Largest 3 | . 2 2 2 2 2 3 Hottest 204 | . 90 125 68 46 46 204 Shots Fired 294 | . 28 16 32 12 14 192 Gun 112 | . 28 8 24 12 14 26 Cannon 176 | . . 8 8 . . 160 Launcher 4 | . . . . . . 4 Special 2 | . . . . . . 2 Kinetic 111 | . . . 20 12 14 65 Thermal 175 | . 28 16 10 . . 121 Explosive 4 | . . . . . . 4 Electromagnetic 2 | . . . 2 . . . Robot Hit Streak 19 | . 10 11 17 5 14 19 Robot Miss Streak 21 | . 1 1 1 2 . 21 Penetration Max . | . . . . . . . Secondary Targets 2 | . 1 . . . . 1 Max Gunslinging Chain 1 | . 1 . . . . 1 Shots Hit Robots 196 | . 21 15 12 8 12 128 Core Hits 131 | . 9 6 5 4 3 104 Critical Kills 2 | . . . 1 . . 1 Critical Parts Destroyed . | . . . . . . . Critical Strikes 4 | . 1 1 1 . . 1 Burn 2 | . 1 1 . . . . Meltdown 1 | . . . . . . 1 Destroy 1 | . . . 1 . . . Melee Attacks . | . . . . . . . Impact . | . . . . . . . Slashing . | . . . . . . . Piercing . | . . . . . . . Sneak Attacks . | . . . . . . . Combat Hostiles . | . . . . . . . Follow-up Attacks . | . . . . . . . Damage Inflicted 4404 | . 247 239 180 154 185 3399 Guns 1141 | . 247 97 180 148 185 284 Cannons 2730 | . . 142 . . . 2588 Explosions 515 | . . . . . . 515 Melee . | . . . . . . . Ramming 18 | . . . . 6 . 12 Kinetic 1663 | . . . 180 148 185 1150 Thermal 2208 | . 247 239 . . . 1722 Explosive 515 | . . . . . . 515 Electromagnetic . | . . . . . . . Impact . | . . . . . . . Slashing . | . . . . . . . Piercing . | . . . . . . . Highest Corruption 4 | . . . . . . 4 Average Corruption 1 | . . . . . . 1 Corruption Purged . | . . . . . . . Corruption Blocked . | . . . . . . . Effects 5 | . . . . . . 5 Message Errors 1 | . . . . . . 1 Matter Fused 1 | . . . . . . 1 Energy Discharges 2 | . . . . . . 2 Alerts 1 | . . . . . . 1 Overload Shots . | . . . . . . . Overflow Damage 34 | . . . . . . 34 Projectiles 32 | . . . . . . 32 Explosions 2 | . . . . . . 2 Melee . | . . . . . . . Knockbacks 40 | . . . . . . 40 Impact . | . . . . . . . Kinetic 33 | . . . . . . 33 Secondary 7 | . . . . . . 7 Self-Inflicted Damage 30 | . . . . . . 30 Shots 1 | . . . . . . 1 Rammed 3 | . . . . 1 . 2 Targets Rammed 5 | . . . . 1 . 4 Kicked 2 | . . . . . . 2 Crushed . | . . . . . . . Highest Temperature 366 | . 366 254 10 . . 259 Average Temperature 100 | . 175 118 4 . . 60 Received Heat Transfer 1551 | . 120 135 63 . . 1233 Siege Activations . | . . . . . . . Robots Corrupted . | . . . . . . . Combat Hostiles . | . . . . . . . Parts Fried . | . . . . . . . Impact Corruptions . | . . . . . . . Robots Melted 1 | . . . . . . 1 Combat Hostiles 1 | . . . . . . 1 Parts Melted 9 | . 1 3 . . . 5 Heat Transferred 4141 | . 731 629 . . . 2781 Parts Sabotaged . | . . . . . . . Parts Stolen . | . . . . . . . Parts Stripped . | . . . . . . . Power Chain Reactions . | . . . . . . . Alert | -11 -10 -9 -9 -9 -9 -6 ------- Run | Yrd Mat Mat Sto Rec Scr Fac Peak Influence 254 | . 130 159 123 105 . 254 Initial 66 | . . 54 66 22 . . Average 83 | . 71 84 60 54 . 120 Maximum Alert Level 1 | . . . . . . 1 Low Security (%) 98 | 100 100 100 100 100 . 95 Level 1 1 | . . . . . . 4 Level 2 . | . . . . . . . Level 3 . | . . . . . . . Level 4 . | . . . . . . . Level 5 . | . . . . . . . High Security . | . . . . . . . Max Security . | . . . . . . . Squads Dispatched 18 | . 2 . 1 . . 15 Investigation 3 | . 1 . . . . 2 Extermination 1 | . . . . . . 1 Reinforcement 5 | . 1 . 1 . . 3 Assault . | . . . . . . . Garrison 9 | . . . . . . 9 Intercept . | . . . . . . . Searches Triggered . | . . . . . . . Construction Impeded 2 | . . . . . . 2 Haulers Reinforced . | . . . . . . . Active Scanning Responses . | . . . . . . . Cargo Convoy Interrupts 1 | . . . . . . 1 Stealth | -11 -10 -9 -9 -9 -9 -6 --------- Run | Yrd Mat Mat Sto Rec Scr Fac Distress Signals 4 | . . . 2 . . 2 Communications Jammed . | . . . . . . . Distress Signals . | . . . . . . . Times Spotted 73 | . 6 3 4 6 . 54 Peak Tracking Total 16 | . 4 2 2 2 . 16 Tactical Retreats 2 | . . . . . . 2 Traps | -11 -10 -9 -9 -9 -9 -6 ------- Run | Yrd Mat Mat Sto Rec Scr Fac Traps Triggered 1 | . . . . . . 1 Indirectly . | . . . . . . . Trap Hack Attempts . | . . . . . . . Triggered . | . . . . . . . Disarmed . | . . . . . . . Reprogrammed . | . . . . . . . Reused . | . . . . . . . Traps Extracted . | . . . . . . . Installed . | . . . . . . . Triggered . | . . . . . . . Machines | -11 -10 -9 -9 -9 -9 -6 ---------- Run | Yrd Mat Mat Sto Rec Scr Fac Machines Disabled 5 | . . . 2 . . 3 Max in Single Turn 1 | . . . 1 . . 1 Machines Repaired . | . . . . . . . Machines Dismantled . | . . . . . . . Machines Sabotaged . | . . . . . . . Overloaded Fab Kills . | . . . . . . . Hacking | -11 -10 -9 -9 -9 -9 -6 --------- Run | Yrd Mat Mat Sto Rec Scr Fac Machines Accessed 9 | . 2 . 3 . 2 2 Terminals 4 | . 1 . 3 . . . Fabricators . | . . . . . . . Repair Stations 2 | . 1 . . . . 1 Recycling Units . | . . . . . . . Scanalyzers . | . . . . . . . Garrison Access 1 | . . . . . . 1 Total Hacks 18 | . 6 . 4 . 4 4 Successful 8 | . 1 . 3 . 4 . Failed 10 | . 5 . 1 . . 4 Catastrophic 3 | . 2 . . . . 1 Database Lockouts . | . . . . . . . Manual 1 | . . . 1 . . . Terminals 8 | . 4 . 4 . . . Fabricators . | . . . . . . . Repair Stations 4 | . 2 . . . . 2 Recycling Units . | . . . . . . . Scanalyzers . | . . . . . . . Garrison Access 2 | . . . . . . 2 Terminal Hacks 8 | . 1 . 3 . 4 . Record 3 | . . . . . 3 . Open Door 3 | . . . 3 . . . Zone Layout 1 | . 1 . . . . . Derelict Proto ID Bank 1 | . . . . . 1 . Fabricator Hacks . | . . . . . . . Repair Station Hacks . | . . . . . . . Recycling Unit Hacks . | . . . . . . . Scanalyzer . | . . . . . . . Garrison Access Hacks . | . . . . . . . Unauthorized Hacks . | . . . . . . . Terminals . | . . . . . . . Fabricators . | . . . . . . . Repair Stations . | . . . . . . . Recycling Units . | . . . . . . . Scanalyzers . | . . . . . . . Garrison Access . | . . . . . . . Data Cores Recovered . | . . . . . . . Used . | . . . . . . . Hacking Detections 4 | . 2 . . . . 2 Full Trace Events 3 | . 1 . . . . 2 Feedback Events . | . . . . . . . Feedback Blocked . | . . . . . . . Robot Schematics Acquired . | . . . . . . . Robots Built . | . . . . . . . Authchips . | . . . . . . . Time . | . . . . . . . Total Robot Build Rating . | . . . . . . . Part Schematics Acquired . | . . . . . . . Parts Built . | . . . . . . . Authchips . | . . . . . . . Time . | . . . . . . . Total Part Build Rating . | . . . . . . . Parts Repaired . | . . . . . . . Time . | . . . . . . . Parts Recycled . | . . . . . . . Recycled Matter . | . . . . . . . Retrieved Matter . | . . . . . . . Retrieved Components . | . . . . . . . Parts Scanalyzed . | . . . . . . . Part Schematics Acquired . | . . . . . . . Parts Damaged . | . . . . . . . Bothacking | -11 -10 -9 -9 -9 -9 -6 ------------ Run | Yrd Mat Mat Sto Rec Scr Fac Used RIF Installer . | . . . . . . . Robots Hacked . | . . . . . . . Non-combat . | . . . . . . . Combat . | . . . . . . . Robot Hacks Applied . | . . . . . . . Relay Couplers Released 4 | . . . . . . 4 Programmers 4 | . . . . . . 4 Fabnet Peak Effective % . | . . . . . . . Robots Rewired 16 | . . . . 16 . . Allies Hacked . | . . . . . . . Hacks Repelled . | . . . . . . . Allies | -11 -10 -9 -9 -9 -9 -6 -------- Run | Yrd Mat Mat Sto Rec Scr Fac Total Allies 16 | . . . . 16 . . Largest Group 12 | . . . . 12 3 3 Highest-Rated Group 143 | . . . . 143 27 27 Highest-Rated Ally 34 | . . . . 34 13 13 Total Orders 2 | . . . 2 . . . EXPLORE 2 | . . . 2 . . . Ally Attacks 31 | . . . . 19 . 12 Total Damage 1813 | . . . . 1593 . 220 Kills 23 | . . . . 21 . 2 Allies Corrupted 1 | . . . . 1 . . Allies Melted . | . . . . . . . Intel | -11 -10 -9 -9 -9 -9 -6 ------- Run | Yrd Mat Mat Sto Rec Scr Fac Robot Analysis Total . | . . . . . . . Derelict Logs Recovered . | . . . . . . . Drone Launches 4 | . . . 4 . . . Drone Recoveries . | . . . . . . . Exploration | -11 -10 -9 -9 -9 -9 -6 ------------- Run | Yrd Mat Mat Sto Rec Scr Fac Turns Passed 4320 | 4 162 190 621 698 1658 987 Spaces Moved 2097 | 4 92 86 228 326 1012 349 Core 56 | . . . . . . 56 Treads 1618 | . . 10 228 326 1012 42 Legs 347 | 4 92 76 . . . 175 Wheels 76 | . . . . . . 76 Hover . | . . . . . . . Flight . | . . . . . . . Fastest Speed 50 | 120 120 120 160 160 160 50 Average Speed 160 | 120 120 164 160 160 160 175 Slowest Speed 700 | 120 120 190 160 160 160 700 Overloaded Moves . | . . . . . . . Propulsion Burnouts . | . . . . . . . Robots Hopped . | . . . . . . . Cave-ins Triggered . | . . . . . . . Exploration Rate (%) 39 | 2 21 12 71 82 78 12 Regions Visited 6 Branch Regions 3 Pre-discovered Areas . | . . . . . . . Known Exits Taken . | . . . . . . . Unknown Exits Taken 6 | 1 1 1 1 1 1 . Scrap Searched 9 | . . . . . 9 . Spaces Dug 1 | . . . . . . 1 Terrain Destroyed 14 | . . . . . . 14 Melee . | . . . . . . . Projectile 7 | . . . . . . 7 AOE 7 | . . . . . . 7 Terrain Rammed . | . . . . . . . Walls Destroyed . | . . . . . . . Machines Disabled . | . . . . . . . Actions | -11 -10 -9 -9 -9 -9 -6 --------- Run | Yrd Mat Mat Sto Rec Scr Fac Total 2772 | 3 115 121 452 489 1040 552 Wait 278 | . 7 12 162 31 4 62 Move 2091 | 3 91 85 227 325 1011 349 Hop . | . . . . . . . Pick Up 25 | . . 2 8 1 5 9 Fast Attach 27 | . 2 2 8 1 1 13 Attach 28 | . . 4 4 . . 20 Detach 9 | . . 2 3 . . 4 Swap 12 | . . 1 7 . 4 . Drop 30 | . 1 5 11 . 8 5 Fire 144 | . 14 8 22 7 7 86 Melee . | . . . . . . . Ram 2 | . . . . . . 2 Kick 2 | . . . . . . 2 Crush 1 | . . . . 1 . . Escape Stasis . | . . . . . . . Rewire 123 | . . . . 123 . . Trap . | . . . . . . . Miscellaneous . | . . . . . . . Route ------- -11/Scrapyard -10/Materials -9/Materials -9/Storage -9/Recycling -9/Scraptown (discovered 2 exits: *Fac x2) -6/Factory History --------- Turn | Location | Event 1 | -11/Scrapyard | Discovered new exit (range 2) 5 | -11/Scrapyard | Entered Materials 136 | -10/Materials | Discovered new exit (range 3) 167 | -10/Materials | Entered another Materials area 167 | -9/Materials | Evolved 2 slots: Propulsion x1, Utility x1 276 | -9/Materials | Discovered new exit (range 11) 300 | -9/Materials | Build established: Mutant 357 | -9/Materials | Entered Storage 691 | -9/Storage | Build established: Scavenger-Mutant 972 | -9/Storage | Used back door to open Recycling access 972 | -9/Storage | Discovered new exit (range 5) 978 | -9/Storage | Entered Recycling 979 | -9/Recycling | Met a Zionite searching for Scraptown 1309 | -9/Recycling | Lost 10 allies 1639 | -9/Recycling | Scanned before Scraplab entrance 1661 | -9/Recycling | Entered Scraplab 1674 | -9/Recycling | Discovered new exit (range 2) 1676 | -9/Recycling | Entered Scraptown 1676 | -9/Scraptown | Accompanied by 3 allies 1937 | -9/Scraptown | Discovered new exit (range 11) 1968 | -9/Scraptown | Build established: Mutant 2038 | -9/Scraptown | Visited Spacefarers 2078 | -9/Scraptown | Visited Cyclists 2108 | -9/Scraptown | Visited Comm Corps 2145 | -9/Scraptown | Visited IN-MT5's Study 2195 | -9/Scraptown | Visited CPS Storage 2225 | -9/Scraptown | Visited Science Testing Area 2331 | -9/Scraptown | Visited UFD Registry 2331 | -9/Scraptown | Registered with UFD as "Shadowshell" 2368 | -9/Scraptown | Visited Bundlers 2547 | -9/Scraptown | Visited Junk Repository 2585 | -9/Scraptown | Visited Infowarlord's Domain 2597 | -9/Scraptown | Found Exp. Sensor Array 2635 | -9/Scraptown | Visited Scrap Suit Storage 2687 | -9/Scraptown | Visited DA-N13 Charitable Foundation 2701 | -9/Scraptown | Found DCF Scrap (30 items) 2728 | -9/Scraptown | Visited Scrapoid Research Area 2770 | -9/Scraptown | Visited Derelict Rescue Squad 2780 | -9/Scraptown | Found DRS Beacon 2811 | -9/Scraptown | Visited LU-1G1's Boring Crew 2867 | -9/Scraptown | Visited Observation Area 2998 | -9/Scraptown | Visited Junk Cannon Lab 3027 | -9/Scraptown | Visited Science Guys 3317 | -9/Scraptown | Discovered new exit (range 5) 3334 | -9/Scraptown | Entered Factory 3334 | -6/Factory | Accompanied by 3 allies 3334 | -6/Factory | Evolved 6 slots: Power x1, Propulsion x1, Utility x3, Weapon x1 3405 | -6/Factory | Garrison activated, responded to threat 3442 | -6/Factory | Lost 3 allies 3465 | -6/Factory | Lost 5 parts (1p2u2w) 3507 | -6/Factory | Lost 3 parts (3n) 3738 | -6/Factory | Garrison activated, responded to threat 3739 | -6/Factory | Build established: Gunner 4093 | -6/Factory | Garrison activated, responded to threat 4233 | -6/Factory | Core integrity fell below 50% 4273 | -6/Factory | Released all parts (3) 4298 | -6/Factory | Lost 12 parts (2p4n2u4w) 4303 | -6/Factory | Released all parts (4) 4312 | -6/Factory | Core integrity fell below 20% 4316 | -6/Factory | Cargo convoy interrupted 4321 | -6/Factory | Destroyed by X-62 Marksman with Gauss Rifle Last Messages --------------- 04302_ L-41 Fighter unfolds itself. 04302_ G-50 Soldier unfolds itself. 04303_ Released Arm. Leg. 04303_ Released Com. Ion Cannon. 04306_ Slammed into G-50 Soldier. 04308_ Acquired 44 matter. 04313_ System corrupted: IFF burst signal emitted. 04315_ C-30 ARC bursts open, deploying its payload. 04315_ X-72 Disruptor unfolds itself. 04315_ H-66 Slayer unfolds itself. 04315_ X-62 Marksman unfolds itself. 04315_ X-67 Chaingunner unfolds itself. 04315_ M-28 Smith unfolds itself. 04316_ ALERT: Cargo convoy interrupted, initiating access lockdown. 04316_ C-30 ARC bursts open, deploying its payload. 04316_ P-60 Hacker unfolds itself. 04316_ X-62 Marksman unfolds itself. 04316_ E-15 Imp unfolds itself. 04321_ E-15 Imp destroyed. Map ----- +----------------------------------------------------+ | ?????????????????????????????????????????????????? | | ?????????????????????????????????????????????????? | | ?????????????????????????????????????????????????? | | ?????????????????????????????????????????????????? | | ?????????????????????????????????????????????????? | | ?????????????????????????????????????????????????? | | ?????????????????????????????????????????????????? | | ?????????????????????????????????????????????????? | | ?????????????????????????????????????????????????? | | ?????????????????????????????????????????????????? | | ?????????????????????????????????????????????????? | | ?????????????????????????????????????????????????? | | ?????????????????????????????????????????????????? | | ?????????????????????????????????????????????????? | | ?????????????????????????????????????????????????? | | ?????????????????????????????????????????????????? | | ?????????????????????????????????????????????????? | | ?????????????????????????????????????????????????? | | ?????????????????????????????????????????????????? | | ?##########??????????????????????????????????????? | | ?# #????##########????????????????????????? | | ?# #????#! #########????????????????? | | ?# ] #????# # ####### ?????????? | | ?# === ] #????# """""" # x i ????????? | | ?# == #????# """""" #= p % ????????? | | ?# #????# """""" /@ ph u ????????? | | ?# ###### """""" #= x p ????????? | | ?# "/% / #! xx m% ????????? | | ?# ###### = # u ####### ?????????? | | ?#####/####????# ### ###????????????????? | | ?????# ##??????##########?? #??????????????????? | | ?????# # ?????????????????? #??????????????????? | | ?????# # "?????????????????? #??????????????????? | | ?????# # "???"""???????????? #??????????????????? | | ?????# # """ """???????????? #??????????????????? | | ?????# # ?? #????????u#??????????????????? | | "????# # """ """ #???????? #??????????????????? | | """??# # """ """ #?????????#??????????????????? | | """ # # """ """ #????????????????????????????? | | + + #????????????????????????????? | | # # #????????????????????????????? | | ??# # #????????????????????????????? | | ????# #!!! #????????????????????????????? | | ?????# ##+##+#+########??????????????????????????? | | ?????# !!!! ????????????????????????? | | ?????# !| ????????????????????????? | | ?????# ????????????????????????? | | ?????# ?????????????????????????? | | ??#### ?????????????????????????? | | ################## ??????????????????????????? | +----------------------------------------------------+ Best States ------------- Heat Dissipation 64 Energy Generation 25 Energy Capacity 315 Matter Stores 539 Matter Capacity 800 Sight Range 16 Terrain Scan Density 10 Additional Mass Support 12 Armor Coverage 225 Evasion (%) 55 Recoil Reduction 3 Item Schematics ----------------- None Robot Schematics ------------------ None Fabricated ------------ Nothing Alien Tech Used ----------------- None Achievements -------------- None Challenges ------------ None Game ------ Seed AlloyShadingBroadsword Manual? 0 Play Time 00:32:27 Cumulative 127.8 hours Start 2024.09.08 @ 16:16:19 End 2024.09.08 @ 17:04:34 Sessions 1 Manual Loads 0 Difficulty Rogue Special Mode None Game No. 207 Rogue 206 Adventurer 1 Explorer 0 Win Type - Total 1 Types 1/0/0/0/0/0/0/0/0 Lore% 66 Gallery% 67 Achievement% 50 Wizard Run 0 Options --------- Layout 1 ASCII 0 Keyboard 0 Movement Mouse Keybinds 0 Fullscreen 2 Font 20/SmallcapsGlow Map View 54x42 Zoom Use 0% Tactical HUD 1 Map Filters NONE Filters NONE Steam 0 RUN: 533d904d-92c3-42ac-a81d-fe94cef354a2